fUSD/lending_fUSD_20250416
["ID","MTS","AMOUNT","RATE_DAILY","PERIOD"]
[358189234,1744823447509,-500.0,0.00054794,120]
[358189236,1744823447518,-500.0,0.00054794,120]
[358189238,1744823447528,-500.0,0.00054794,120]
[358189240,1744823447537,-362.92,0.00054794,120]
[358189242,1744823447546,-500.0,0.00054794,120]
[358189244,1744823447555,-500.0,0.00054794,120]
[358189246,1744823447565,-500.0,0.00054794,120]
[358189248,1744823447574,-500.0,0.00054794,120]
[358189250,1744823447583,-500.0,0.00054794,120]
[358189252,1744823447593,-500.0,0.00054794,120]
[358189254,1744823447602,-538.0,0.00054794,35]
[358189256,1744823447611,-500.0,0.00054794,120]
[358189258,1744823447620,-500.0,0.00054794,120]
[358189259,1744823447629,-500.0,0.00054794,120]
[358189261,1744823447638,-500.0,0.00054794,120]
[358189263,1744823447647,-500.0,0.00054794,120]
[358189265,1744823447656,-500.0,0.00054794,120]
[358189267,1744823447666,-500.0,0.00054794,120]
[358189268,1744823447675,-635.67,0.00054794,120]
[358189269,1744823447684,-217.3803832,0.00054794,120]
[358189270,1744823447694,-678.62,0.00054794,120]
[358189271,1744823447703,-554.52943244,0.00054794,120]
[358189272,1744823447711,-500.0,0.00054794,120]
[358189273,1744823447720,-500.0,0.00054794,120]
[358189274,1744823447729,-500.0,0.00054794,120]
[358189275,1744823447738,-582.31,0.00054794,120]
[358189276,1744823447749,-500.0,0.00054794,120]
[358189277,1744823447758,-500.0,0.00054794,120]
[358189278,1744823447768,-500.0,0.00054794,120]
[358189279,1744823447777,-500.0,0.00054794,120]
[358189280,1744823447786,-500.0,0.00054794,120]
[358189281,1744823447795,-500.0,0.00054794,120]
[358189282,1744823447806,-500.0,0.00054794,120]
[358189283,1744823447815,-500.0,0.00054794,120]
[358189284,1744823447824,-500.0,0.00054794,120]
[358189285,1744823447834,-500.0,0.00054794,120]
[358189286,1744823447844,-500.0,0.00054794,120]
[358189287,1744823447855,-692.81,0.00054794,120]
[358189288,1744823447864,-500.0,0.00054794,120]
[358189289,1744823447874,-500.0,0.00054794,120]
[358189290,1744823447883,-500.0,0.00054794,120]
[358189291,1744823447893,-500.0,0.00054794,120]
[358189292,1744823447902,-500.0,0.00054794,120]
[358189293,1744823447911,-634.19,0.00054794,120]
[358189294,1744823447920,-500.0,0.00054794,120]
[358189295,1744823447930,-1000.0,0.00054794,120]
[358189296,1744823447939,-539.9,0.00054794,120]
[358189297,1744823447948,-500.0,0.00054794,120]
[358189298,1744823447957,-500.0,0.00054794,120]
[358189299,1744823447966,-500.0,0.00054794,120]
[358189300,1744823447976,-500.0,0.00054794,120]
[358189301,1744823447985,-500.0,0.00054794,120]
[358189302,1744823447995,-500.0,0.00054794,120]
[358189303,1744823448008,-500.0,0.00054794,120]
[358189304,1744823448017,-500.0,0.00054794,120]
[358189305,1744823448028,-500.0,0.00054794,120]
[358189306,1744823448041,-500.0,0.00054794,120]
[358189307,1744823448051,-500.0,0.00054794,120]
[358189308,1744823448060,-500.0,0.00054931,120]
[358189309,1744823448070,-670.19,0.00054931,120]
[358189311,1744823448080,-500.0,0.00054931,120]
[358189313,1744823448090,-500.0,0.00054931,120]
[358189315,1744823448100,-500.0,0.00054931,8]
[358189317,1744823448109,-500.0,0.00054931,120]
[358189333,1744823448260,-500.0,0.00054931,120]
[358189335,1744823448272,-500.0,0.00054931,120]
[358189337,1744823448283,-500.0,0.00054931,120]
[358189339,1744823448292,-500.0,0.00054931,120]
[358189341,1744823448302,-500.0,0.00054931,120]
[358189343,1744823448312,-500.0,0.00054931,120]
[358189345,1744823448322,-500.0,0.00054931,120]
[358189347,1744823448332,-723.76,0.00054931,120]
[358189348,1744823448342,-500.0,0.00054931,120]
[358189350,1744823448352,-500.0,0.00054931,120]
[358189352,1744823448362,-635.14,0.00054931,120]
[358189354,1744823448371,-500.0,0.00054931,120]
[358189356,1744823448382,-528.39,0.00054931,120]
[358189358,1744823448391,-439.52658112,0.00054931,120]
[358189360,1744823448407,-60.47341888,0.00054931,120]
[358189362,1744823448416,-500.0,0.00054931,120]
[358189363,1744823448426,-500.0,0.00054931,120]
[358189364,1744823448436,-500.0,0.00054931,120]
[358189365,1744823448445,-500.0,0.00054931,120]
[358189366,1744823448455,-662.14,0.00054931,120]
[358189367,1744823448465,-500.0,0.00054931,120]
[358189368,1744823448475,-500.0,0.00054931,120]
[358189369,1744823448485,-500.0,0.00054931,120]
[358189370,1744823448495,-500.0,0.00054931,120]
[358189371,1744823448506,-500.0,0.00054931,120]
[358189372,1744823448516,-539.00954772,0.00054931,120]
[358189373,1744823448526,-500.0,0.00054931,120]
[358189374,1744823448536,-500.0,0.00054931,120]
[358189375,1744823448545,-500.0,0.00054931,120]
[358189376,1744823448555,-686.12,0.00054931,120]
[358189377,1744823448564,-500.0,0.00054931,120]
[358189378,1744823448573,-595.43,0.00054931,120]
[358189379,1744823448583,-500.0,0.00054931,120]
[358189380,1744823448592,-500.0,0.00054931,120]
[358189381,1744823448602,-500.0,0.00054931,120]
[358189382,1744823448612,-500.0,0.00054931,120]
[358189383,1744823448622,-500.0,0.00054931,120]
[358189384,1744823448631,-500.0,0.00054931,120]
[358189385,1744823448641,-500.0,0.00054931,120]
[358189386,1744823448650,-513.33,0.00054931,120]
[358189387,1744823448659,-500.0,0.00054931,120]
[358189388,1744823448669,-500.0,0.00054931,120]
[358189389,1744823448679,-500.84146208,0.00054931,120]
[358189390,1744823448689,-633.98365405,0.00054931,120]
[358189391,1744823448699,-500.0,0.00054931,30]
[358189392,1744823448708,-500.0,0.00054931,120]
[358189393,1744823448718,-500.0,0.00054931,120]
[358189394,1744823448727,-500.0,0.00054931,120]
[358189395,1744823448736,-500.0,0.00054931,120]
[358189396,1744823448746,-500.0,0.00054931,120]
[358189397,1744823448755,-500.0,0.00054931,120]
[358189398,1744823448766,-500.0,0.00054931,120]
[358189399,1744823448776,-1340.78,0.00054931,120]
[358189400,1744823448785,-233.67549309,0.00054931,120]
[358189401,1744823448794,-500.0,0.00054931,120]
[358189402,1744823448804,-500.0,0.00054931,120]
[358189403,1744823448814,-500.0,0.00054931,120]
[358189404,1744823448823,-500.0,0.00054931,120]
[358189405,1744823448832,-503.68,0.00054931,120]
[358189406,1744823448841,-500.0,0.00054931,120]
[358189407,1744823448851,-500.0,0.00054931,120]
[358189408,1744823448860,-500.0,0.00054931,120]
[358189409,1744823448871,-500.0,0.00054931,120]
[358189410,1744823448881,-500.0,0.00054931,120]
[358189411,1744823448890,-500.0,0.00054931,120]
[358189412,1744823448900,-500.0,0.00054931,120]
[358189413,1744823448910,-500.0,0.00054931,120]
[358189414,1744823448919,-500.0,0.00054931,120]
[358189415,1744823448929,-500.0,0.00054931,120]
[358189416,1744823448938,-500.0,0.00054931,120]
[358189417,1744823448948,-500.0,0.00054931,120]
[358189418,1744823448957,-500.0,0.00054931,30]
[358189419,1744823448967,-500.0,0.00054931,120]
[358189420,1744823448976,-670.94,0.00054931,120]
[358189421,1744823448986,-500.0,0.00054931,120]
[358189422,1744823448996,-500.0,0.00054931,120]
[358189423,1744823449006,-543.94805856,0.00054931,120]
[358189424,1744823449015,-250.3476952,0.00054931,7]
[358189425,1744823449028,-3304.97940903,0.00054931,7]
[358189430,1744824416087,-180.0,0.00032877,30]
[358189431,1744824416108,-429.00076,0.00034783,30]
[358189432,1744824416131,-250.0,0.00038261,2]
[358189433,1744824416151,-244.37360847,0.000409,2]
[358189435,1744824518766,2499.999999,0.000151,2]
[358189470,1744824632341,-5000.0,0.00024,5]
[358189473,1744824632351,-276.72772999,0.000248,2]
[358189475,1744824632361,-259.32966101,0.000249,2]
[358189477,1744824632371,-999.999999,0.0003121,2]
[358189479,1744824632383,-322.6,0.00034783,30]
[358189481,1744824632395,-535.754333,0.00037808,2]
[358189483,1744824632407,-300.0,0.00037999,3]
[358189485,1744824632418,-372.0,0.00037999,2]
[358189487,1744824632428,-433.588277,0.00038,5]
[358189489,1744824632441,-756.79311258,0.00038,5]
[358189491,1744824632453,-7299.99187849,0.00038,5]
[358189493,1744824632464,-259.329661,0.0003866,2]
[358189495,1744824632474,-180.0,0.00044327,30]
[358189497,1744824632484,-455.28140761,0.000468,120]
[358189500,1744824632498,-1000.0,0.000471,7]
[358189502,1744824632509,-152.79,0.0004975,120]
[358189504,1744824632520,-583.49030221,0.0005,120]
[358189506,1744824632530,-151.04,0.00050074,2]
[358189508,1744824632540,-406.33,0.00051162,2]
[358189510,1744824632550,-295.2558,0.00051536,2]
[358189512,1744824632561,-614.8329,0.00051536,2]
[358189514,1744824632572,-200.0,0.00051652,7]
[358189516,1744824632582,-153.0,0.00051856,120]
[358189518,1744824632592,-23900.0,0.00051871,2]
[358189520,1744824632602,-150.0,0.00051988,2]
[358189521,1744824632612,-4529.12408904,0.000521,120]
[358189522,1744824632627,-2000.0,0.00052143,120]
[358189523,1744824632641,-150.0,0.00052143,9]
[358189524,1744824632652,-200.0,0.00052143,30]
[358189526,1744824632663,-623.83,0.00052149,120]
[358189528,1744824632674,-277.17,0.00052167,2]
[358189530,1744824632685,-1000.0,0.00052209,120]
[358189532,1744824632697,-445.7,0.00052215,120]
[358189533,1744824632707,-305.6504,0.00052234,2]
[358189534,1744824632718,-250.0,0.00052297,120]
[358189535,1744824632729,-460.979,0.00052334,96]
[358189536,1744824632739,-3483.68,0.00052334,2]
[358189537,1744824632749,-164.57,0.00052346,2]
[358189538,1744824632759,-656.42,0.00052376,2]
[358189539,1744824632770,-500.0,0.0005238,2]
[358189540,1744824632780,-259.329661,0.0005242,2]
[358189541,1744824632791,-164.57,0.00052433,2]
[358189542,1744824632801,-164.57,0.0005252,2]
[358189543,1744824632811,-151.04,0.00052605,2]
[358189544,1744824632821,-164.57,0.00052608,2]
[358189545,1744824632831,-300.0,0.00053539,120]
[358189546,1744824632842,-175.5,0.00053729,2]
[358189547,1744824632851,-3198.67,0.00054082,30]
[358189548,1744824632862,-1000.0,0.000544,7]
[358189549,1744824632872,-1000.0,0.000544,7]
[358189550,1744824632886,-1743.0,0.000544,7]
[358189551,1744824632897,-267.0,0.000544,7]
[358189552,1744824632907,-173.63654261,0.00054794,120]
[358189553,1744824632918,-173.63654261,0.00054794,120]
[358189554,1744824632928,-500.0,0.00054794,120]
[358189555,1744824632939,-500.0,0.00054794,120]
[358189556,1744824632950,-500.0,0.00054794,120]
[358189557,1744824632960,-500.0,0.00054794,120]
[358189558,1744824632970,-500.0,0.00054794,120]
[358189559,1744824632981,-500.0,0.00054794,120]
[358189560,1744824632991,-531.52392186,0.00054794,120]
[358189561,1744824633002,-500.0,0.00054794,120]
[358189562,1744824633013,-500.0,0.00054794,120]
[358189563,1744824633024,-500.0,0.00054794,120]
[358189564,1744824633035,-500.0,0.00054794,120]
[358189565,1744824633046,-500.0,0.00054794,120]
[358189566,1744824633058,-1000.0,0.00054794,120]
[358189567,1744824633069,-500.0,0.00054794,120]
[358189568,1744824633079,-500.0,0.00054794,120]
[358189570,1744824633090,-300.0,0.00054794,120]
[358189572,1744824633101,-500.0,0.00054794,120]
[358189573,1744824633111,-500.0,0.00054794,120]
[358189575,1744824633121,-563.1456371,0.00054794,120]
[358189577,1744824633132,-500.0,0.00054794,120]
[358189578,1744824633153,-500.0,0.00054794,120]
[358189580,1744824633164,-500.0,0.00054794,120]
[358189582,1744824633174,-1000.0,0.00054794,120]
[358189583,1744824633186,-500.0,0.00054794,120]
[358189585,1744824633198,-500.0,0.00054794,120]
[358189587,1744824633209,-500.0,0.00054794,120]
[358189588,1744824633220,-500.0,0.00054794,120]
[358189590,1744824633231,-500.0,0.00054794,120]
[358189591,1744824633242,-500.0,0.00054794,120]
[358189593,1744824633254,-500.0,0.00054794,120]
[358189595,1744824633265,-500.0,0.00054794,120]
[358189596,1744824633276,-500.0,0.00054794,120]
[358189597,1744824633288,-500.0,0.00054794,120]
[358189599,1744824633300,-500.0,0.00054794,120]
[358189601,1744824633311,-500.0,0.00054794,120]
[358189602,1744824633324,-500.0,0.00054794,120]
[358189604,1744824633335,-500.0,0.00054794,120]
[358189606,1744824633347,-500.0,0.00054794,120]
[358189607,1744824633358,-500.0,0.00054794,120]
[358189609,1744824633371,-452.63729178,0.00054794,120]
[358189611,1744824633385,-500.0,0.00054794,120]
[358189613,1744824633399,-500.0,0.00054794,120]
[358189614,1744824633410,-500.0,0.00054794,120]
[358189616,1744824633421,-500.0,0.00054794,120]
[358189618,1744824633431,-725.95,0.00054794,120]
[358189619,1744824633442,-500.0,0.00054794,120]
[358189621,1744824633453,-500.0,0.00054794,120]
[358189623,1744824633463,-644.71,0.00054794,120]
[358189624,1744824633474,-546.86,0.00054794,120]
[358189626,1744824633486,-500.0,0.00054794,120]
[358189628,1744824633497,-500.0,0.00054794,120]
[358189630,1744824633508,-669.46,0.00054794,120]
[358189631,1744824633519,-500.0,0.00054794,120]
[358189633,1744824633530,-500.0,0.00054794,120]
[358189635,1744824633540,-500.0,0.00054794,120]
[358189637,1744824633551,-500.0,0.00054794,120]
[358189638,1744824633563,-500.0,0.00054794,120]
[358189640,1744824633573,-153.88,0.00054794,30]
[358189642,1744824633584,-220.9,0.00054794,120]
[358189644,1744824633595,-500.0,0.00054794,120]
[358189646,1744824633607,-518.40487843,0.00054794,120]
[358189648,1744824633618,-500.0,0.00054794,120]
[358189651,1744824633640,-500.0,0.00054794,120]
[358189652,1744824633653,-500.0,0.00054794,30]
[358189654,1744824633664,-500.0,0.00054794,120]
[358189656,1744824633675,-500.0,0.00054794,120]
[358189658,1744824633686,-500.0,0.00054794,120]
[358189660,1744824633699,-500.0,0.00054794,120]
[358189662,1744824633710,-512.75,0.00054794,120]
[358189664,1744824633722,-500.0,0.00054794,120]
[358189666,1744824633732,-500.0,0.00054794,120]
[358189668,1744824633743,-500.0,0.00054794,120]
[358189669,1744824633754,-500.0,0.00054794,120]
[358189670,1744824633764,-500.0,0.00054794,120]
[358189671,1744824633774,-500.0,0.00054794,120]
[358189672,1744824633786,-518.27427104,0.00054794,120]
[358189673,1744824633797,-500.0,0.00054794,120]
[358189674,1744824633807,-500.0,0.00054794,120]
[358189675,1744824633818,-163.44,0.00054794,120]
[358189676,1744824633828,-500.0,0.00054794,120]
[358189677,1744824633839,-500.0,0.00054794,120]
[358189678,1744824633849,-500.0,0.00054794,120]
[358189679,1744824633859,-500.0,0.00054794,120]
[358189680,1744824633869,-500.0,0.00054794,120]
[358189681,1744824633879,-500.0,0.00054794,120]
[358189682,1744824633901,-500.0,0.00054794,120]
[358189683,1744824633912,-500.0,0.00054794,120]
[358189684,1744824633923,-501.23,0.00054794,120]
[358189685,1744824633933,-500.0,0.00054794,120]
[358189686,1744824633943,-589.4,0.00054794,120]
[358189687,1744824633954,-275.42,0.00054794,120]
[358189688,1744824633964,-500.0,0.00054794,120]
[358189689,1744824633975,-500.0,0.00054794,120]
[358189690,1744824633986,-558.05,0.00054794,120]
[358189691,1744824633996,-500.0,0.00054794,120]
[358189692,1744824634006,-1000.0,0.00054794,120]
[358189693,1744824634017,-500.0,0.00054794,120]
[358189694,1744824634027,-500.0,0.00054794,120]
[358189695,1744824634038,-500.0,0.00054794,120]
[358189696,1744824634048,-628.94,0.00054794,120]
[358189697,1744824634060,-545.81,0.00054794,120]
[358189698,1744824634070,-150.0,0.00054795,120]
[358189699,1744824634082,-150.0,0.00054795,120]
[358189700,1744824634093,-150.0,0.00054795,120]
[358189701,1744824634104,-275.0,0.00054795,120]
[358189702,1744824634114,-150.15556501,0.00054795,120]
[358189703,1744824634124,-150.0,0.00054795,120]
[358189704,1744824634140,-150.0,0.00054795,120]
[358189705,1744824634152,-150.0,0.00054795,120]
[358189706,1744824634165,-200.0,0.00054795,120]
[358189707,1744824634176,-150.0,0.00054795,9]
[358189709,1744824634188,-150.0,0.00054795,9]
[358189710,1744824634200,-202.63376703,0.00054795,9]
[358189711,1744824634211,-150.0,0.00054795,120]
[358189712,1744824634222,-239.85661791,0.00054795,120]
[358189714,1744824634235,-150.0,0.00054795,120]
[358189715,1744824634246,-438.89200656,0.0005483,15]
[358189717,1744824634257,-7582.1467,0.0005483,2]
[358189719,1744824634266,-202.1703,0.0005483,2]
[358189721,1744824634276,-690.5443,0.0005483,2]
[358189722,1744824634287,-338.44,0.00054831,2]
[358189723,1744824634298,-276.17359115,0.00054831,15]
[358189724,1744824634308,-2585.16947444,0.00054831,26]
[358189725,1744824634319,-300.0,0.00054909,120]
[358189726,1744824634329,-18637.1043718,0.0005492,2]
[358189727,1744824634340,-390.13,0.0005492,30]
[358189728,1744824634351,-5132.81796735,0.00054921,2]
[358189729,1744824634366,-456.40958204,0.00054921,2]
[358189730,1744824634379,-488.85575651,0.00054921,2]
[358189731,1744824634397,-10957.77996223,0.00054921,2]
[358189732,1744824634416,-415.0,0.00054921,2]
[358189733,1744824634429,-497.0,0.00054921,2]
[358189742,1744824638402,-150.0,0.00052167,2]
[358189743,1744824638412,-689.24110367,0.00054921,2]
[358189744,1744824638423,-461.97889633,0.00054929,120]
[358189746,1744824638516,-38.02110367,0.00054929,120]
[358189747,1744824638527,-311.97889633,0.00054929,120]
[358189748,1744824638539,-188.02110367,0.00054929,120]
[358189749,1744824638550,-500.0,0.00054929,120]
[358189750,1744824638559,-500.0,0.00054929,120]
[358189751,1744824638569,-500.0,0.00054929,120]
[358189752,1744824638580,-395.62074462,0.00054929,120]
[358189753,1744824638592,-104.37925538,0.00054929,120]
[358189754,1744824638603,-500.0,0.00054929,120]
[358189755,1744824638612,-500.0,0.00054929,120]
[358189756,1744824638626,-339.21116258,0.00054929,120]
[358189757,1744824638652,-160.78883742,0.00054929,120]
[358189758,1744824638663,-352.23681122,0.00054929,120]
[358189759,1744824638681,-147.76318878,0.00054929,120]
[358189760,1744824638691,-335.6229379,0.00054929,120]
[358189761,1744824638703,-164.3770621,0.00054929,120]
[358189762,1744824638713,-500.0,0.00054929,120]
[358189763,1744824638723,-171.42551441,0.00054929,120]
[358189764,1744824638734,-185.71394604,0.00054929,120]
[358189765,1744824638744,-500.0,0.00054929,120]
[358189766,1744824638754,-60.97747745,0.00054929,120]
[358189768,1744824638769,-439.02252255,0.00054929,120]
[358189770,1744824638777,-194.92638684,0.00054929,120]
[358189771,1744824638785,-500.0,0.00054929,120]
[358189772,1744824638795,-500.0,0.00054929,120]
[358189773,1744824638805,-500.0,0.00054929,120]
[358189774,1744824638814,-337.9988033,0.00054929,120]
[358189776,1744824638824,-500.0,0.00054929,120]
[358189778,1744824638834,-500.0,0.00054929,120]
[358189780,1744824638844,-500.0,0.00054929,120]
[358189782,1744824638854,-500.0,0.00054929,120]
[358189784,1744824638863,-690.73,0.00054929,120]
[358189786,1744824638873,-500.0,0.00054929,120]
[358189788,1744824638882,-500.0,0.00054929,120]
[358189790,1744824638896,-500.0,0.00054929,120]
[358189792,1744824638907,-500.0,0.00054929,120]
[358189794,1744824638917,-500.0,0.00054929,120]
[358189796,1744824638927,-500.0,0.00054929,120]
[358189799,1744824638946,-500.0,0.00054929,120]
[358189802,1744824638958,-500.0,0.00054929,120]
[358189804,1744824638968,-500.0,0.00054929,120]
[358189806,1744824638978,-500.0,0.00054929,120]
[358189808,1744824638988,-2122.38,0.00054929,120]
[358189810,1744824638998,-500.0,0.00054929,120]
[358189812,1744824639008,-500.0,0.00054929,120]
[358189814,1744824639019,-500.0,0.00054929,120]
[358189816,1744824639029,-500.0,0.00054929,120]
[358189818,1744824639039,-500.0,0.00054929,120]
[358189820,1744824639049,-500.0,0.00054929,120]
[358189822,1744824639059,-500.0,0.00054929,120]
[358189824,1744824639069,-500.0,0.00054929,120]
[358189826,1744824639079,-517.4,0.00054929,120]
[358189828,1744824639089,-500.0,0.00054929,2]
[358189830,1744824639099,-588.03,0.0005493,120]
[358189832,1744824639109,-500.0,0.0005493,8]
[358189834,1744824639119,-500.0,0.0005493,120]
[358189836,1744824639129,-546.17,0.0005493,120]
[358189837,1744824639142,-500.0,0.0005493,120]
[358189839,1744824639152,-500.0,0.0005493,120]
[358189841,1744824639162,-500.0,0.0005493,120]
[358189843,1744824639172,-500.0,0.0005493,120]
[358189846,1744824639182,-500.0,0.0005493,120]
[358189848,1744824639195,-500.0,0.0005493,120]
[358189850,1744824639205,-500.0,0.0005493,120]
[358189852,1744824639215,-491.87362764,0.0005493,120]
[358189854,1744824639225,-287.83368992,0.0005493,120]
[358189856,1744824639234,-500.0,0.0005493,120]
[358189858,1744824639244,-500.0,0.0005493,120]
[358189860,1744824639254,-500.0,0.0005493,120]
[358189862,1744824639265,-500.0,0.0005493,120]
[358189864,1744824639275,-500.0,0.0005493,120]
[358189866,1744824639285,-500.0,0.0005493,120]
[358189868,1744824639295,-500.0,0.0005493,120]
[358189870,1744824639305,-500.0,0.0005493,120]
[358189872,1744824639315,-500.0,0.0005493,120]
[358189874,1744824639325,-500.0,0.0005493,30]
[358189876,1744824639336,-500.0,0.0005493,120]
[358189878,1744824639346,-500.0,0.0005493,120]
[358189880,1744824639356,-500.0,0.0005493,120]
[358189882,1744824639365,-500.0,0.0005493,120]
[358189884,1744824639375,-500.0,0.0005493,120]
[358189886,1744824639385,-500.0,0.0005493,120]
[358189888,1744824639400,-500.0,0.0005493,120]
[358189890,1744824639410,-500.0,0.0005493,120]
[358189892,1744824639420,-500.0,0.0005493,120]
[358189893,1744824639430,-500.0,0.0005493,120]
[358189894,1744824639441,-500.74,0.0005493,120]
[358189895,1744824639451,-500.0,0.0005493,120]
[358189896,1744824639461,-500.0,0.0005493,120]
[358189897,1744824639471,-500.0,0.0005493,120]
[358189898,1744824639482,-500.0,0.0005493,120]
[358189899,1744824639492,-500.0,0.0005493,120]
[358189900,1744824639503,-500.0,0.0005493,120]
[358189901,1744824639513,-500.0,0.0005493,120]
[358189902,1744824639523,-500.0,0.0005493,120]
[358189903,1744824639533,-500.0,0.0005493,120]
[358189904,1744824639544,-1229.05,0.0005493,120]
[358189905,1744824639554,-500.0,0.0005493,120]
[358189906,1744824639564,-500.0,0.0005493,120]
[358189907,1744824639574,-609.25155675,0.0005493,120]
[358189908,1744824639584,-500.0,0.0005493,120]
[358189909,1744824639596,-500.0,0.0005493,120]
[358189910,1744824639606,-500.0,0.0005493,120]
[358189911,1744824639616,-500.0,0.0005493,120]
[358189912,1744824639633,-500.0,0.0005493,120]
[358189913,1744824639646,-500.0,0.0005493,120]
[358189914,1744824639657,-500.0,0.0005493,120]
[358189915,1744824639669,-500.0,0.0005493,120]
[358189916,1744824639680,-500.0,0.0005493,120]
[358189917,1744824639691,-500.0,0.0005493,120]
[358189918,1744824639702,-815.83,0.0005493,120]
[358189919,1744824639712,-500.0,0.0005493,120]
[358189920,1744824639722,-500.0,0.0005493,120]
[358189921,1744824639732,-500.0,0.0005493,120]
[358189922,1744824639742,-500.0,0.0005493,120]
[358189923,1744824639752,-500.0,0.0005493,120]
[358189924,1744824639761,-96672.45,0.0005493,7]
[358189926,1744824639771,-500.0,0.0005493,120]
[358189928,1744824639782,-500.0,0.0005493,120]
[358189930,1744824639792,-608.79,0.0005493,120]
[358189932,1744824639802,-500.0,0.0005493,120]
[358189934,1744824639811,-977.69,0.0005493,2]
[358189936,1744824639821,-513.43,0.0005493,120]
[358189938,1744824639831,-500.0,0.0005493,120]
[358189939,1744824639840,-1300.01,0.0005493,120]
[358189941,1744824639850,-522.23935088,0.0005493,120]
[358189943,1744824639859,-500.0,0.0005493,120]
[358189945,1744824639869,-500.0,0.0005493,120]
[358189947,1744824639878,-500.0,0.0005493,120]
[358189949,1744824639888,-500.0,0.0005493,120]
[358189951,1744824639900,-500.0,0.0005493,120]
[358189953,1744824639910,-500.0,0.0005493,120]
[358189955,1744824639921,-500.0,0.0005493,120]
[358189956,1744824639932,-500.0,0.0005493,120]
[358189957,1744824639942,-500.0,0.0005493,120]
[358189958,1744824639952,-500.0,0.0005493,120]
[358189959,1744824639963,-500.0,0.0005493,120]
[358189960,1744824639972,-500.0,0.0005493,120]
[358189961,1744824639983,-500.0,0.0005493,120]
[358189962,1744824639992,-500.0,0.0005493,120]
[358189963,1744824640002,-500.0,0.0005493,120]
[358189964,1744824640012,-500.0,0.0005493,120]
[358189965,1744824640023,-500.0,0.0005493,120]
[358189966,1744824640034,-500.0,0.0005493,120]
[358189967,1744824640043,-500.0,0.0005493,2]
[358189968,1744824640053,-500.0,0.0005493,120]
[358189969,1744824640063,-500.0,0.0005493,120]
[358189970,1744824640073,-500.0,0.0005493,120]
[358189971,1744824640275,-500.0,0.0005493,120]
[358189972,1744824640285,-500.0,0.0005493,120]
[358189973,1744824640295,-500.0,0.0005493,120]
[358189974,1744824640306,-500.0,0.0005493,120]
[358189975,1744824640317,-500.0,0.0005493,120]
[358189976,1744824640328,-500.0,0.0005493,120]
[358189977,1744824640338,-500.0,0.0005493,120]
[358189978,1744824640349,-500.0,0.0005493,118]
[358189980,1744824640359,-500.0,0.0005493,120]
[358189982,1744824640368,-2582.15,0.0005493,120]
[358189984,1744824640378,-500.0,0.0005493,120]
[358189985,1744824640388,-908.53,0.0005493,120]
[358189986,1744824640400,-500.0,0.0005493,120]
[358189987,1744824640410,-728.18,0.0005493,120]
[358189989,1744824640420,-669.76,0.0005493,120]